fUST/lending_fUST_20240621
["ID","MTS","AMOUNT","RATE_DAILY","PERIOD"]
[330017872,1718940643627,-523.10667309,0.00054794,120]
[330017874,1718940643636,-2633.34,0.00054794,120]
[330017876,1718940643646,-513.93452748,0.00054794,120]
[330017878,1718940643655,-1818.56,0.00054794,120]
[330017882,1718940643665,-504.9289924,0.00054794,120]
[330017885,1718940643675,-159.485281,0.00054794,14]
[330017887,1718940643684,-455.06654984,0.00054794,120]
[330017889,1718940643694,-504.87912741,0.00054794,120]
[330017893,1718940643704,-509.51852303,0.00054794,120]
[330017896,1718940643713,-500.0,0.00054794,120]
[330017899,1718940643723,-358.47119018,0.00054794,120]
[330017931,1718940643935,-182.28835771,0.00054794,120]
[330017933,1718940643945,-151.0,0.00054794,14]
[330017935,1718940643954,-158.065339,0.00054794,14]
[330017937,1718940643964,-506.15477586,0.00054794,120]
[330017939,1718940643974,-506.95552597,0.00054794,120]
[330017941,1718940643983,-509.5984301,0.00054794,120]
[330017943,1718940643993,-507.51121297,0.00054794,120]
[330017945,1718940644002,-151.0,0.00054794,14]
[330017947,1718940644011,-157.602151,0.00054794,14]
[330017949,1718940644021,-501.48664393,0.00054794,120]
[330017951,1718940644031,-151.0,0.00054794,14]
[330017953,1718940644040,-516.81,0.00054794,7]
[330017955,1718940644049,-151.0,0.00054794,14]
[330017957,1718940644059,-151.0,0.00054794,14]
[330017959,1718940644068,-484.57036608,0.00054794,120]
[330017961,1718940644078,-505.89461652,0.00054794,120]
[330017963,1718940644086,-841.35,0.00054794,120]
[330017965,1718940644096,-368.07152872,0.00054794,120]
[330017967,1718940644105,-500.0,0.00054794,120]
[330017969,1718940644115,-500.0,0.00054794,120]
[330017971,1718940644124,-510.1501691,0.00054794,120]
[330017973,1718940644134,-508.85258496,0.00054794,120]
[330017975,1718940644143,-500.0,0.00054794,120]
[330017977,1718940644152,-500.0,0.00054794,120]
[330017979,1718940644162,-500.0,0.00054794,120]
[330017981,1718940644171,-514.247102,0.00054794,120]
[330017983,1718940644181,-500.0,0.00054794,120]
[330017985,1718940644191,-516.93085243,0.00054794,120]
[330017988,1718940644200,-500.0,0.00054794,120]
[330017990,1718940644210,-500.0,0.00054794,120]
[330017991,1718940644220,-500.0,0.00054794,2]
[330017993,1718940644229,-514.89816652,0.00054794,120]
[330017996,1718940644239,-565.83,0.00054794,120]
[330017999,1718940644249,-152.177565,0.00054794,14]
[330018001,1718940644259,-1317.36,0.00054794,120]
[330018003,1718940644269,-526.51126432,0.00054794,120]
[330018005,1718940644278,-500.0,0.00054794,120]
[330018006,1718940644288,-500.0,0.00054794,120]
[330018009,1718940644297,-537.24371905,0.00054794,120]
[330018010,1718940644307,-500.0,0.00054794,120]
[330018013,1718940644317,-500.0,0.00054794,120]
[330018014,1718940644327,-511.13441678,0.00054794,120]
[330018017,1718940644336,-500.0,0.00054794,120]
[330018018,1718940644346,-500.0,0.00054794,120]
[330018020,1718940644356,-1152.88,0.00054794,120]
[330018022,1718940644367,-170.43720929,0.00054794,120]
[330018024,1718940644377,-501.17667394,0.00054794,120]
[330018026,1718940644387,-540.95840594,0.00054794,120]
[330018029,1718940644397,-500.49046679,0.00054794,120]
[330018030,1718940644407,-639.02,0.00054794,120]
[330018032,1718940644416,-514.36109004,0.00054794,120]
[330018034,1718940644427,-500.0,0.00054794,120]
[330018037,1718940644446,-16395.82,0.00054794,120]
[330018039,1718940644456,-16395.82,0.00054794,120]
[330018041,1718940644466,-507.07411023,0.00054794,120]
[330018043,1718940644475,-7042.08120233,0.00054794,120]
[330018045,1718940644490,-9353.73879767,0.00054794,120]
[330018047,1718940644499,-16395.82,0.00054794,120]
[330018049,1718940644510,-16395.82,0.00054794,120]
[330018051,1718940644523,-16395.82,0.00054794,120]
[330018053,1718940644533,-16395.82,0.00054794,120]
[330018055,1718940644543,-16395.82,0.00054794,120]
[330018057,1718940644552,-16395.82,0.00054794,120]
[330018059,1718940644562,-16395.82,0.00054794,120]
[330018060,1718940644571,-16395.82,0.00054794,120]
[330018061,1718940644581,-16395.82,0.00054794,120]
[330018062,1718940644591,-16395.82,0.00054794,120]
[330018063,1718940644601,-16395.82,0.00054794,120]
[330018064,1718940644611,-510.36904219,0.00054794,120]
[330018065,1718940644621,-518.290549,0.00054794,120]
[330018066,1718940644630,-506.76397227,0.00054794,120]
[330018067,1718940644640,-500.0,0.00054794,120]
[330018068,1718940644649,-502.2929617,0.00054794,120]
[330018069,1718940644658,-507.72768513,0.00054794,120]
[330018070,1718940644667,-633.09,0.00054794,120]
[330018071,1718940644676,-541.61886297,0.00054794,120]
[330018072,1718940644685,-500.0,0.00054794,120]
[330018073,1718940644696,-1718.59,0.00054794,120]
[330018074,1718940644705,-518.69066398,0.00054794,120]
[330018075,1718940644714,-500.0,0.00054794,120]
[330018076,1718940644723,-1764.36,0.00054794,120]
[330018077,1718940644731,-421.982014,0.00054794,14]
[330018078,1718940644740,-421.982014,0.00054794,14]
[330018079,1718940644750,-509.95313776,0.00054794,120]
[330018080,1718940644758,-421.982014,0.00054794,14]
[330018081,1718940644767,-1960.82,0.00054794,120]
[330018082,1718940644776,-514.78525205,0.00054794,120]
[330018083,1718940644785,-500.0,0.00054794,120]
[330018084,1718940644794,-1040.24,0.00054794,120]
[330018085,1718940644802,-500.0,0.00054794,120]
[330018086,1718940644811,-421.982014,0.00054794,14]
[330018087,1718940644820,-421.982014,0.00054794,14]
[330018088,1718940644830,-520.78600603,0.00054794,120]
[330018089,1718940644838,-421.982014,0.00054794,14]
[330018090,1718940644847,-500.0,0.00054794,120]
[330018091,1718940644856,-6822.24,0.00054794,120]
[330018092,1718940644865,-672.88,0.00054794,120]
[330018093,1718940644873,-500.0,0.00054794,120]
[330018094,1718940644882,-506.94991212,0.00054794,120]
[330018095,1718940644891,-444.30363506,0.00054794,120]
[330018096,1718940644899,-512.95410034,0.00054794,120]
[330018097,1718940644908,-152.995928,0.00054794,14]
[330018098,1718940644917,-513.64082834,0.00054794,120]
[330018099,1718940644927,-3234.02,0.00054794,120]
[330018100,1718940644936,-1336.97,0.00054794,120]
[330018101,1718940644946,-519.69134798,0.00054794,120]
[330018102,1718940644955,-559.53,0.00054794,120]
[330018103,1718940644964,-535.21382282,0.00054794,120]
[330018104,1718940644973,-509.39102447,0.00054794,120]
[330018105,1718940644982,-512.55544132,0.00054794,120]
[330018106,1718940644991,-374.597075,0.00054794,14]
[330018107,1718940644999,-374.597075,0.00054794,14]
[330018108,1718940645009,-374.597075,0.00054794,14]
[330018109,1718940645018,-506.34721956,0.00054794,120]
[330018110,1718940645028,-47776.06,0.00054794,120]
[330018111,1718940645037,-500.0,0.00054794,120]
[330018112,1718940645047,-629.32,0.00054794,120]
[330018113,1718940645056,-523.07204452,0.00054794,120]
[330018114,1718940645066,-374.597075,0.00054794,14]
[330018115,1718940645076,-500.0,0.00054794,120]
[330018116,1718940645086,-374.597075,0.00054794,14]
[330018117,1718940645095,-374.597075,0.00054794,14]
[330018118,1718940645104,-500.0,0.00054794,120]
[330018119,1718940645114,-500.0,0.00054794,120]
[330018120,1718940645123,-827.51,0.00054794,120]
[330018121,1718940645132,-500.0,0.00054794,120]
[330018122,1718940645141,-20302.02,0.00054794,120]
[330018123,1718940645150,-500.0,0.00054794,60]
[330018124,1718940645160,-500.0,0.00054794,120]
[330018125,1718940645169,-519.51581409,0.00054794,120]
[330018126,1718940645178,-510.63674784,0.00054794,120]
[330018127,1718940645188,-605.57131963,0.00054794,120]
[330018128,1718940645198,-500.0,0.00054794,120]
[330018129,1718940645207,-500.0,0.00054794,120]
[330018130,1718940645216,-500.0,0.00054794,120]
[330018131,1718940645226,-1920.15,0.00054794,120]
[330018132,1718940645235,-4817.86,0.00054794,21]
[330018133,1718940645244,-151.0,0.00054794,14]
[330018134,1718940645254,-151.0,0.00054794,14]
[330018135,1718940645263,-1000.0,0.00054794,120]
[330018136,1718940645272,-153.479533,0.00054794,14]
[330018137,1718940645281,-1102.13,0.00054794,120]
[330018138,1718940645291,-7494.23,0.00054794,120]
[330018139,1718940645299,-515.87775531,0.00054794,120]
[330018140,1718940645309,-543.04,0.00054794,120]
[330018141,1718940645318,-509.57067597,0.00054794,120]
[330018142,1718940645327,-2356.15,0.00054794,120]
[330018143,1718940645337,-585.44,0.00054794,120]
[330018144,1718940645346,-509.61255725,0.00054794,120]
[330018145,1718940645356,-8667.81,0.00054794,120]
[330018146,1718940645365,-525.51853251,0.00054794,120]
[330018147,1718940645374,-500.0,0.00054794,120]
[330018149,1718940645383,-515.14,0.00054794,120]
[330018150,1718940645392,-536.09412772,0.00054794,120]
[330018151,1718940645402,-500.0,0.00054794,120]
[330018152,1718940645412,-500.0,0.00054794,120]
[330018153,1718940645421,-509.93103643,0.00054794,120]
[330018154,1718940645432,-500.0,0.00054794,120]
[330018155,1718940645446,-585.78820829,0.00054794,120]
[330018156,1718940645456,-2681.25,0.00054794,120]
[330018157,1718940645465,-572.92686618,0.00054794,120]
[330018158,1718940645475,-500.0,0.00054794,120]
[330018159,1718940645486,-510.5953373,0.00054794,120]
[330018160,1718940645496,-500.0,0.00054794,90]
[330018161,1718940645506,-523.76837718,0.00054794,120]
[330018162,1718940645518,-500.0,0.00054794,120]
[330018163,1718940645528,-1291.83,0.00054794,120]
[330018164,1718940645538,-2027.05,0.00054794,120]
[330018165,1718940645548,-523.45473494,0.00054794,120]
[330018166,1718940645558,-509.23919175,0.00054794,120]
[330018167,1718940645569,-500.0,0.00054794,120]
[330018168,1718940645579,-151.0,0.00054794,14]
[330018169,1718940645589,-25115.84,0.00054794,120]
[330018170,1718940645599,-151.0,0.00054794,14]
[330018171,1718940645610,-1881.87,0.00054794,120]
[330018172,1718940645619,-500.0,0.00054794,120]
[330018173,1718940645629,-1579.85,0.00054794,120]
[330018174,1718940645640,-8875.26,0.00054794,120]
[330018175,1718940645650,-508.72907824,0.00054794,120]
[330018176,1718940645659,-691.3,0.00054794,120]
[330018177,1718940645669,-516.43800392,0.00054794,120]
[330018178,1718940645680,-500.0,0.00054794,120]
[330018179,1718940645689,-511.34434317,0.00054794,120]
[330018181,1718940645700,-508.60501128,0.00054794,120]
[330018182,1718940645710,-628.56,0.00054794,120]
[330018184,1718940645720,-233.487257,0.00054794,14]
[330018186,1718940645729,-233.487257,0.00054794,14]
[330018188,1718940645738,-687.72,0.00054794,120]
[330018189,1718940645748,-1131.27,0.00054794,120]
[330018190,1718940645757,-613.540955,0.00054794,120]
[330018191,1718940645766,-233.487257,0.00054794,14]
[330018192,1718940645775,-233.487257,0.00054794,14]
[330018193,1718940645785,-500.0,0.00054794,120]
[330018194,1718940645794,-273.912951,0.00054794,14]
[330018195,1718940645893,-3215.8,0.00054794,120]
[330018196,1718940645903,-934.8,0.00054794,120]
[330018197,1718940645913,-151.0,0.00054794,14]
[330018198,1718940645923,-151.0,0.00054794,14]
[330018199,1718940645932,-2747.29,0.00054794,120]
[330018200,1718940645942,-151.0,0.00054794,14]
[330018201,1718940645951,-151.0,0.00054794,14]
[330018202,1718940645961,-1420.44,0.00054794,120]
[330018203,1718940645970,-280.07746847,0.00054794,120]
[330018204,1718940645980,-500.0,0.00054794,120]
[330018205,1718940645989,-1987.01,0.00054794,120]
[330018206,1718940645998,-566.38664955,0.00054794,120]
[330018207,1718940646008,-520.02093175,0.00054794,120]
[330018208,1718940646018,-1753.83,0.00054794,120]
[330018209,1718940646028,-1236.7,0.00054794,120]
[330018210,1718940646038,-503.24739768,0.00054794,120]
[330018211,1718940646047,-582.026846,0.00054794,14]
[330018212,1718940646057,-582.026846,0.00054794,14]
[330018213,1718940646067,-547.0,0.00054794,120]
[330018214,1718940646076,-508.76871722,0.00054794,120]
[330018215,1718940646086,-520.61547763,0.00054794,120]
[330018216,1718940646095,-630.31,0.00054794,120]
[330018217,1718940646104,-501.33063064,0.00054794,120]
[330018218,1718940646114,-724.8,0.00054794,120]
[330018219,1718940646123,-518.67198392,0.00054794,120]
[330018220,1718940646132,-582.026846,0.00054794,14]
[330018221,1718940646142,-582.026846,0.00054794,14]
[330018222,1718940646151,-652.85,0.00054794,120]
[330018223,1718940646161,-500.0,0.00054794,120]
[330018224,1718940646170,-500.0,0.00054794,120]
[330018225,1718940646180,-500.0,0.00054794,120]
[330018226,1718940646189,-301.86943106,0.00054794,2]
[330018227,1718940646200,-520.36270965,0.00054794,120]
[330018228,1718940646209,-500.0,0.00054794,120]
[330018229,1718940646219,-695.63,0.00054794,120]
[330018230,1718940646228,-600.63054434,0.00054794,120]
[330018231,1718940646238,-1362.96,0.00054794,120]
[330018232,1718940646247,-1362.96,0.00054794,120]
[330018233,1718940646257,-1362.96,0.00054794,120]
[330018234,1718940646267,-1362.96,0.00054794,120]
[330018235,1718940646276,-1362.96,0.00054794,120]
[330018236,1718940646286,-1362.96,0.00054794,120]
[330018237,1718940646296,-1362.96,0.00054794,120]
[330018238,1718940646306,-4428.09,0.00054794,120]
[330018239,1718940646316,-1362.96,0.00054794,120]
[330018240,1718940646325,-1362.96,0.00054794,120]
[330018241,1718940646335,-1362.96,0.00054794,120]
[330018242,1718940646344,-1362.96,0.00054794,120]
[330018243,1718940646354,-1362.96,0.00054794,120]
[330018244,1718940646364,-151.0,0.00054794,14]
[330018245,1718940646374,-1362.96,0.00054794,120]
[330018246,1718940646384,-1362.96,0.00054794,120]
[330018247,1718940646394,-154.861286,0.00054794,14]
[330018248,1718940646404,-235.811962,0.00054794,14]
[330018249,1718940646414,-235.811962,0.00054794,14]
[330018250,1718940646424,-504.08113203,0.00054794,120]
[330018251,1718940646439,-522.68313479,0.00054794,30]
[330018252,1718940646451,-500.0,0.00054794,120]
[330018253,1718940646461,-151.0,0.00054794,14]
[330018254,1718940646475,-235.811962,0.00054794,14]
[330018255,1718940646485,-151.0,0.00054794,14]
[330018256,1718940646495,-500.0,0.00054794,120]
[330018257,1718940646505,-235.811962,0.00054794,14]
[330018258,1718940646515,-1891.28,0.00054794,120]
[330018259,1718940646526,-510.1346197,0.00054794,120]
[330018260,1718940646536,-5549.42,0.00054794,120]
[330018261,1718940646545,-154.11458,0.00054794,14]
[330018262,1718940646555,-2673.31,0.00054794,120]
[330018263,1718940646564,-201.850817,0.00054795,120]
[330018264,1718940646574,-201.850817,0.00054795,120]
[330018265,1718940646584,-201.850817,0.00054795,120]
[330018266,1718940646593,-201.850817,0.00054795,120]
[330018267,1718940646602,-201.850817,0.00054795,120]
[330018268,1718940646611,-201.850817,0.00054795,120]
[330018269,1718940646621,-252.0,0.000548,33]
[330018271,1718940646631,-3595.04,0.00054872,120]
[330018273,1718940646640,-151.0,0.00054873,120]
[330018275,1718940646650,-151.0,0.00054873,120]
[330018277,1718940646660,-285.151418,0.00054873,120]
[330018278,1718940646670,-16395.82,0.00054873,120]
[330018279,1718940646680,-3595.04,0.00054873,120]
[330018280,1718940646690,-3595.04,0.00054873,120]
[330018281,1718940646700,-582.026846,0.00054873,120]
[330018282,1718940646710,-582.026846,0.00054873,120]
[330018283,1718940646720,-1362.96,0.00054873,120]
[330018284,1718940646730,-235.811962,0.00054873,120]
[330018285,1718940646739,-151.0,0.00054873,120]
[330018286,1718940646749,-235.811962,0.00054873,120]
[330018287,1718940646758,-151.502714,0.00054874,120]
[330018288,1718940646768,-151.0,0.00054874,120]
[330018289,1718940646778,-151.677865,0.00054874,120]
[330018290,1718940646787,-151.0,0.00054874,120]
[330018291,1718940646797,-151.0,0.00054874,120]
[330018293,1718940646807,-201.850817,0.00054874,120]
[330018295,1718940646817,-201.850817,0.00054874,120]
[330018297,1718940646826,-16395.82,0.00054874,120]
[330018299,1718940646836,-421.982014,0.00054874,120]
[330018301,1718940646846,-421.982014,0.00054874,120]
[330018303,1718940646856,-374.597075,0.00054874,120]
[330018305,1718940646866,-374.597075,0.00054874,120]
[330018307,1718940646876,-263.700223,0.00054874,120]
[330018309,1718940646886,-160.110028,0.00054874,120]
[330018310,1718940646896,-233.487257,0.00054874,120]
[330018311,1718940646906,-233.487257,0.00054874,120]
[330018312,1718940646916,-151.0,0.00054874,120]
[330018313,1718940646926,-151.0,0.00054874,120]
[330018314,1718940646935,-3595.04,0.00054874,120]
[330018315,1718940646946,-1362.96,0.00054874,120]
[330018316,1718940646956,-151.0,0.00054875,120]
[330018317,1718940646965,-151.0,0.00054875,120]
[330018319,1718940646975,-969.497377,0.00054875,120]
[330018321,1718940646985,-969.497377,0.00054875,120]
[330018323,1718940646994,-969.497377,0.00054875,120]
[330018324,1718940647004,-969.497377,0.00054875,120]
[330018326,1718940647014,-151.0,0.00054875,120]
[330018328,1718940647023,-13782.73995462,0.00054875,120]
[330018331,1718940647039,-2613.08004538,0.00054875,120]
[330018332,1718940647049,-55.62731974,0.00054875,120]
[330018333,1718940647167,-1189.73765153,0.00054875,120]
[330018334,1718940647436,-6674.91368896,0.00054784,3]
[330018335,1718940647451,-1023.67334161,0.00054784,3]
[330018336,1718940647462,-514.55065191,0.00054784,3]
[330018337,1718940647473,-1229.33739131,0.00054784,3]
[330018350,1718941552135,-164.09213231,0.00018644,2]
[330018351,1718941552156,-282.69399861,0.00018743,2]
[330018352,1718941598125,-192.8275417,0.00018744,2]
[330018353,1718941625098,-651.20081324,0.00018744,2]
[330018354,1718941648139,-540.20991589,0.00018744,2]
[330018355,1718941746153,-19481.95761579,0.00018744,2]
[330018356,1718941752283,-21296.81212881,0.00018744,2]
[330018357,1718941752305,-196.0700484,0.000188,2]
[330018358,1718941752327,-455.40574273,0.000189,2]
[330018359,1718941752352,-1089.31439586,0.00020796,2]
[330018360,1718941752375,-166.0669868,0.00021096,2]
[330018361,1718941752398,-24890.0,0.00021128,2]
[330018362,1718941752420,-34758.71076768,0.0002272,2]
[330018363,1718941752442,-455.40574273,0.000239,2]
[330018364,1718941752464,-24498.35468685,0.00024,2]
[330018365,1718941754083,-8195.81216136,0.00024,2]
[330018366,1718941755097,-8195.81216136,0.00024,2]
[330018367,1718941760251,-24469.3584585,0.00024,2]
[330018368,1718941763101,-4121.79025026,0.00024,2]
[330018369,1718941768128,-24490.17183233,0.00024,2]
[330018370,1718941770086,-4121.79025026,0.00024,2]
[330018371,1718941773088,-172.34378686,0.00024,2]
[330018392,1718941831892,-584.95296827,0.00018743,2]
[330018393,1718941831908,-34173.75779941,0.00018743,2]
[330018394,1718941831918,-185.3363719,0.00021096,2]
[330018395,1718941831929,-2292.63565344,0.0002502,2]
[330018397,1718941831938,-169.3014,0.0002512,2]
[330018399,1718941831948,-622.07618405,0.00028111,2]
[330018401,1718941831957,-455.40574273,0.000289,2]
[330018403,1718941831966,-1351.94822085,0.0003058,120]
[330018406,1718941831976,-25430.08299561,0.0003058,7]
[330018410,1718941831988,-3023.45680044,0.0003058,7]
[330018413,1718941831999,-774.65,0.0003058,7]
[330018752,1718941837756,-1482.1239843,0.0003058,7]
[330018753,1718941837769,-7242.200015,0.0003058,7]
[330018754,1718941837782,-4598.2762932,0.0003058,7]
[330018755,1718941837820,-18110.77096973,0.0003058,7]
[330018756,1718941837836,-283.10221347,0.0003058,2]
[330018757,1718941837846,-1293.14473547,0.0003058,2]
[330018759,1718941837856,-7145.00870733,0.0003058,2]
[330018760,1718941837867,-272.1628974,0.00045,12]
[330018761,1718941837877,-417.68720792,0.00049,120]
[330018762,1718941837887,-201.12,0.0004999,62]
[330018763,1718941837896,-197.26,0.0004999,62]
[330018764,1718941837911,-2568.7593,0.0005,60]
[330018765,1718941837922,-100000.0,0.0005,120]
[330018766,1718941837932,-100000.0,0.0005,120]
[330018767,1718941837942,-1874.84751256,0.0005,4]
[330018769,1718941837951,-155.27283971,0.00053971,4]
[330018771,1718941837961,-15509.64,0.00054,120]
[330018772,1718941837971,-3762.96957183,0.00054,30]
[330018774,1718941837980,-156.1,0.00054219,90]
[330018775,1718941837990,-2752.732,0.000543,120]
[330018776,1718941838000,-21696.16579968,0.00054478,2]
[330018777,1718941838010,-2000.0,0.000545,120]
[330018778,1718941838019,-2000.0,0.000545,120]
[330018779,1718941838029,-2000.0,0.000545,120]
[330018780,1718941838039,-2000.0,0.000545,120]
[330018781,1718941838048,-2000.0,0.000545,120]
[330018782,1718941838058,-2000.0,0.000545,120]
[330018783,1718941838068,-2000.0,0.000545,120]
[330018784,1718941838078,-2000.0,0.000545,120]
[330018785,1718941838089,-2000.0,0.000545,120]
[330018786,1718941838099,-2000.0,0.000545,120]
[330018787,1718941838109,-2000.0,0.000545,120]
[330018788,1718941838119,-2000.0,0.000545,120]
[330018789,1718941838129,-335.3,0.00054505,90]
[330018790,1718941838139,-5123.28967495,0.00054771,120]
[330018791,1718941838148,-1582.96582005,0.00054783,40]
[330018792,1718941838159,-525.797441,0.0005479,120]
[330018793,1718941838169,-4106.5,0.00054792,120]
[330018794,1718941838178,-514.97515442,0.00054793,10]
[330018795,1718941838188,-685.95,0.00054793,120]
[330018796,1718941838198,-4106.5,0.00054793,120]
[330018797,1718941838208,-606.1095672,0.00054793,120]
[330018798,1718941838218,-508.60580619,0.00054794,120]
[330018799,1718941838228,-500.0,0.00054794,120]
[330018800,1718941838237,-664.0,0.00054794,120]
[330018801,1718941838247,-500.0,0.00054794,120]
[330018802,1718941838256,-500.0,0.00054794,120]
[330018803,1718941838265,-536.27215686,0.00054794,120]
[330018804,1718941838275,-2000.0,0.00054794,5]
[330018805,1718941838284,-1205.36,0.00054794,120]
[330018806,1718941838294,-500.0,0.00054794,120]
[330018807,1718941838304,-500.0,0.00054794,120]
[330018808,1718941838313,-512.74045205,0.00054794,120]
[330018809,1718941838322,-502.21333375,0.00054794,120]
[330018810,1718941838331,-250.0,0.00054794,120]
[330018811,1718941838340,-490.43335896,0.00054794,120]
[330018812,1718941838350,-505.32294698,0.00054794,120]
[330018813,1718941838359,-500.0,0.00054794,120]
[330018814,1718941838369,-500.0,0.00054794,120]
[330018815,1718941838379,-500.0,0.00054794,120]
[330018816,1718941838389,-500.0,0.00054794,120]
[330018817,1718941838398,-508.53593184,0.00054794,120]
[330018818,1718941838409,-500.0,0.00054794,120]
[330018819,1718941838419,-503.78141916,0.00054794,120]
[330018820,1718941838428,-500.0,0.00054794,120]
[330018821,1718941838438,-500.0,0.00054794,120]
[330018822,1718941838541,-648.70446817,0.00054794,120]
[330018823,1718941838551,-503.16376079,0.00054794,120]
[330018824,1718941838561,-500.0,0.00054794,120]
[330018825,1718941838571,-500.0,0.00054794,120]
[330018826,1718941838582,-500.0,0.00054794,120]
[330018827,1718941838591,-507.22726176,0.00054794,120]
[330018828,1718941838602,-500.0,0.00054794,120]
[330018829,1718941838612,-500.0,0.00054794,120]
[330018830,1718941838621,-510.18993085,0.00054794,120]
[330018831,1718941838631,-500.0,0.00054794,120]
[330018832,1718941838642,-509.45115531,0.00054794,120]
[330018833,1718941838652,-510.91039547,0.00054794,120]
[330018834,1718941838664,-500.0,0.00054794,120]
[330018835,1718941838673,-516.75789753,0.00054794,120]
[330018836,1718941838683,-534.82337726,0.00054794,120]
[330018837,1718941838693,-508.54801794,0.00054794,120]
[330018838,1718941838703,-500.0,0.00054794,120]
[330018839,1718941838712,-506.57089271,0.00054794,120]
[330018840,1718941838722,-500.0,0.00054794,120]
[330018841,1718941838732,-510.02008965,0.00054794,120]
[330018842,1718941838741,-505.0471163,0.00054794,120]
[330018843,1718941838751,-163.13691605,0.00054794,120]
[330018844,1718941838761,-516.04690645,0.00054794,120]
[330018845,1718941838770,-523.24605613,0.00054794,120]
[330018846,1718941838780,-509.45202368,0.00054794,120]
[330018847,1718941838789,-511.44162009,0.00054794,120]
[330018848,1718941838799,-200.463819,0.00054794,14]
[330018849,1718941838809,-511.30748835,0.00054794,120]
[330018850,1718941838818,-500.0,0.00054794,120]
[330018851,1718941838831,-700.64,0.00054794,120]
[330018852,1718941838841,-517.1324249,0.00054794,120]
[330018853,1718941838851,-500.0,0.00054794,120]
[330018854,1718941838861,-151.0,0.00054794,14]
[330018855,1718941838872,-500.0,0.00054794,120]
[330018856,1718941838882,-151.0,0.00054794,14]
[330018857,1718941838891,-500.0,0.00054794,120]
[330018858,1718941838902,-500.0,0.00054794,120]
[330018859,1718941838913,-151.0,0.00054794,14]
[330018860,1718941838923,-502.21326457,0.00054794,120]
[330018861,1718941838932,-427.95808286,0.00054794,120]
[330018862,1718941838942,-500.0,0.00054794,120]
[330018863,1718941838952,-302.51056846,0.00054794,120]
[330018864,1718941838962,-808.27,0.00054794,120]
[330018865,1718941838971,-500.0,0.00054794,120]
[330018866,1718941838981,-820.897901,0.00054794,14]
[330018867,1718941838991,-500.0,0.00054794,120]
[330018868,1718941839000,-1553.36,0.00054794,120]
[330018869,1718941839010,-820.897901,0.00054794,14]
[330018870,1718941839020,-497.27180528,0.00054794,120]
[330018871,1718941839029,-500.0,0.00054794,120]
[330018872,1718941839039,-500.0,0.00054794,120]
[330018873,1718941839049,-500.0,0.00054794,120]
[330018874,1718941839059,-571.35,0.00054794,120]
[330018875,1718941839069,-500.0,0.00054794,120]
[330018876,1718941839078,-502.2485112,0.00054794,120]
[330018877,1718941839088,-500.0,0.00054794,120]
[330018878,1718941839098,-1912.05,0.00054794,120]
[330018879,1718941839108,-500.0,0.00054794,120]
[330018880,1718941839118,-500.0,0.00054794,120]
[330018881,1718941839128,-500.0,0.00054794,120]
[330018882,1718941839138,-500.0,0.00054794,120]
[330018883,1718941839147,-575.92704871,0.00054794,120]
[330018884,1718941839157,-513.85711662,0.00054794,120]
[330018885,1718941839168,-500.0,0.00054794,120]
[330018886,1718941839178,-500.0,0.00054794,120]
[330018887,1718941839187,-500.0,0.00054794,120]
[330018888,1718941839197,-500.0,0.00054794,120]
[330018889,1718941839207,-519.69134798,0.00054794,120]
[330018890,1718941839217,-151.0,0.00054794,14]
[330018891,1718941839227,-509.95313776,0.00054794,120]
[330018892,1718941839237,-631.66,0.00054794,120]
[330018893,1718941839247,-500.0,0.00054794,120]
[330018894,1718941839256,-500.0,0.00054794,120]